Workbook

Sheet menu

Sheet voci di costo
C4: voci di costo | D4: importo
C5: costo unitario materie prime vasi | D5: 5.5
C6: costo unitario materie prime bicchieri | D6: 3
C7: TOTALE COSTI PER STIPENDI | D7: =D9+'voci di costo'!costo_totale_manodopera_diretta -> 400000
C8: costo totale manodopera diretta | D8: 200000
C9: TOTALE MANODOPERA INDIRETTA | D9: =costo_tot_mdo_indle+'voci di costo'!stipendio_responsabile_forno+'voci di costo'!stipendio_responsabile_fucina_e_sabbiatura+'voci di costo'!stipendio_responsabile_amministrazione+'voci di costo'!stipendio_responsabile_magazzino+'voci di costo'!stipendio_responsabile_vendite -> 200000
C10: costo totale manodopera indiretta industriale | D10: 66000
C11: stipendio responsabile forno | D11: 26000
C12: stipendio responsabile fucina e sabbiatura | D12: 28000
C13: stipendio responsabile amministrazione | D13: 30000
C14: stipendio responsabile magazzino | D14: 20000
C15: stipendio responsabile vendite | D15: 30000
C16: TOTALE COSTI GENERALI | D16: =SUM(D17:D19,D21:D23) -> 98400
C17: energia | D17: 11400
C18: riscaldamento | D18: 8000
C19: assicurazione impianti e attrezzature | D19: 3000
C20: TOTALE AMMORTAMENTI | D20: =SUM(D21:D23) -> 76000
C21: ammortamenti industriali | D21: 60000
C22: ammortamenti mezzi di trasporto interni | D22: 7000
C23: ammortamento hardware e software | D23: 9000
C24: TOTALE COSTI INDIRETTI | D24: ='voci di costo'!TOTALE_COSTI_GENERALI+D9 -> 298400

Sheet basi di riparto
B5: voce di costo | C5: base di riparto | D5: valore totale | E5: valore vasi | F5: valore bicchieri
B6: ='voci di costo'!C8 -> costo totale manodopera diretta | C6: ore lavorate | D6: =SUM(E6:F6) -> 14000 | E6: 9130 | F6: 4870
B7: ='voci di costo'!C20 -> TOTALE AMMORTAMENTI | C7: ore macchina | D7: 72 | E7: 60 | F7: 12
B9: CENTRI DI COSTO - BASI DI RIPARTO
C10: base di riparto | D10: forno | E10: fucina | F10: sabbiatura | G10: magazzino | H10: amm.ne | I10: comm.le | J10: totale
B11: costo manodopera diretta | D11: 0.2 | E11: 0.6 | F11: 0.2 | J11: =SUM(D11:I11) -> 1
B12: costo manodopera indiretta industriale | C12: costi mdo diretta
B13: responsabile fucina e sabbiatura | C13: costi mdo diretta
B14: ammortamenti industriali | C14: metri quadrati | D14: 2000 | E14: 500 | F14: 500 | J14: =SUM(D14:I14) -> 3000
B15: ammortamento mezzi di trasporto | C15: magazzino
B16: ammortamento hardware | G16: =1/3 -> 0.3333333333 | H16: 0.3333333333 | I16: 0.3333333333 | J16: =SUM(D16:I16) -> 1
B17: riscaldamento | C17: metri cubi | D17: 0.4 | E17: 0.15 | F17: 0.15 | G17: 0.05 | H17: 0.15 | I17: 0.1 | J17: 1
B18: energia elettrica e assicurazione | C18: ammortamento

Sheet BASE UNICA
B7: COSTI | C7: COEFFICIENTE | D7: VASI | E7: BICCHIERI | F7: controllo
B8: materie prime | D8: ='voci di costo'!costo_unitario_materie_prime_vasi -> 5.5 | E8: ='voci di costo'!costo_unitario_materie_prime_bicchieri -> 3
B9: manodopera diretta | C9: ='voci di costo'!costo_totale_manodopera_diretta/ore_lavorate_totali -> 14.28571429 | D9: =coefficiente_riparto_manodopera_diretta*ore_lavorate_vasi -> 130428.5714 | E9: =coefficiente_riparto_manodopera_diretta*ore_lavorate_bicchieri -> 69571.42857 | F9: =SUM(D9:E9)-'voci di costo'!costo_totale_manodopera_diretta -> 0
B10: costi indiretti | C10: ='voci di costo'!TOTALE_COSTI_INDIRETTI/'voci di costo'!costo_totale_manodopera_diretta -> 1.492 | D10: =C10*D9 -> 194599.4286 | E10: =coefficiente_unitario_costi_indiretti*E9 -> 103800.5714 | F10: =SUM(D10:E10)-'voci di costo'!TOTALE_COSTI_INDIRETTI -> 0
B11: TOTALE | D11: =SUM(D8:D10) -> 325033.5 | E11: 173375

Sheet BASE MULTIPLA
B7: COSTI | C7: COEFFICIENTE | D7: VASI | E7: BICCHIERI | F7: controllo
B8: materie prime | D8: ='voci di costo'!costo_unitario_materie_prime_vasi -> 5.5 | E8: ='voci di costo'!costo_unitario_materie_prime_bicchieri -> 3
B9: manodopera diretta | C9: ='voci di costo'!costo_totale_manodopera_diretta/ore_lavorate_totali -> 14.28571429 | D9: =C9*ore_lavorate_vasi -> 130428.5714 | E9: =coefficiente_unitario_mdo_diretta*ore_lavorate_bicchieri -> 69571.42857 | F9: =SUM(D9:E9)-'voci di costo'!costo_totale_manodopera_diretta -> 0
B10: ammortamenti | C10: ='voci di costo'!TOTALE_AMMORTAMENTI/ore_macchina_totali -> 1055.555556 | D10: =coefficiente_unitario_ammortamenti*ore_macchina_vasi -> 63333.33333 | E10: =coefficiente_unitario_ammortamenti*ore_macchina_bicchieri -> 12666.66667 | F10: =SUM(D10:E10)-'voci di costo'!TOTALE_AMMORTAMENTI -> 0
B11: altri costi indiretti | C11: =('voci di costo'!TOTALE_COSTI_INDIRETTI-'voci di costo'!TOTALE_AMMORTAMENTI)/ore_lavorate_totali -> 15.88571429 | D11: =coefficiente_unitario_altri_costi_indiretti*ore_lavorate_vasi -> 145036.5714 | E11: =coefficiente_unitario_altri_costi_indiretti*ore_lavorate_bicchieri -> 77363.42857 | F11: =SUM(D11:E11)-'voci di costo'!TOTALE_COSTI_INDIRETTI+'voci di costo'!TOTALE_AMMORTAMENTI -> 0
B12: TOTALE | D12: =SUM(D8:D11) -> 338803.9762 | E12: 159604.5238

Sheet CENTRI DI COSTO
B4: costi | C4: amministrazione | D4: magazzino | E4: forno | F4: fucina | G4: sabbiatura | H4: commerciale | I4: totale
B5: mdo diretta | E5: ='voci di costo'!costo_totale_manodopera_diretta/SUM('basi di riparto'!D11:F11)*base_riparto_mdo_dir_forno -> 40000 | F5: ='voci di costo'!costo_totale_manodopera_diretta/SUM('basi di riparto'!D11:F11)*base_riparto_mdo_dir_fucina -> 120000 | G5: ='voci di costo'!costo_totale_manodopera_diretta/SUM('basi di riparto'!D11:F11)*base_riparto_mdo_dir_sabbiatura -> 40000 | I5: =SUM(C5:H5) -> 200000
B6: mdo indiretta | E6: ='voci di costo'!costo_totale_manodopera_indiretta_industriale/SUM('basi di riparto'!D11:F11)*base_riparto_mdo_dir_forno -> 13200 | F6: ='voci di costo'!costo_totale_manodopera_indiretta_industriale/SUM('basi di riparto'!D11:F11)*base_riparto_mdo_dir_fucina -> 39600 | G6: ='voci di costo'!costo_totale_manodopera_indiretta_industriale*base_riparto_mdo_dir_sabbiatura -> 13200 | I6: 66000
B7: stipendi | C7: ='voci di costo'!stipendio_responsabile_amministrazione -> 30000 | D7: ='voci di costo'!stipendio_responsabile_magazzino -> 20000 | E7: ='voci di costo'!stipendio_responsabile_forno -> 26000 | F7: ='voci di costo'!stipendio_responsabile_fucina_e_sabbiatura/(mdo_dir_fucina+mdo_dir_sabbiatura)*mdo_dir_fucina -> 21000 | G7: ='voci di costo'!stipendio_responsabile_fucina_e_sabbiatura/(mdo_dir_fucina+mdo_dir_sabbiatura)*mdo_dir_sabbiatura -> 7000 | H7: ='voci di costo'!stipendio_responsabile_vendite -> 30000 | I7: 134000
B8: ammortamenti industriali | E8: ='voci di costo'!ammortamenti_industriali/totale_base_riparto_ammind*base_riparto_ammind_forno -> 40000 | F8: ='voci di costo'!ammortamenti_industriali/totale_base_riparto_ammind*base_riparto_ammind_fucina -> 10000 | G8: ='voci di costo'!ammortamenti_industriali/totale_base_riparto_ammind*base_riparto_ammind_sabbiatura -> 10000 | I8: 60000
B9: amm.to mezzi di trasporto | D9: ='voci di costo'!ammortamenti_mezzi_di_trasporto_interni -> 7000 | I9: 7000
B10: amm.to hw e sw | C10: ='voci di costo'!ammortamento_hardware_e_software*base_riparto_ammhard_amministrazione -> 3000 | D10: ='voci di costo'!ammortamento_hardware_e_software*base_riparto_ammhard_forno -> 3000 | H10: ='voci di costo'!ammortamento_hardware_e_software*base_riparto_ammhard_commerciale -> 3000 | I10: 9000
B11: riscaldamento | C11: ='voci di costo'!riscaldamento*base_riparto_riscald_ammne -> 1200 | D11: ='voci di costo'!riscaldamento*base_riparto_riscald_magazzino -> 400 | E11: ='voci di costo'!riscaldamento*base_riparto_riscald_forno -> 3200 | F11: ='voci di costo'!riscaldamento*base_riparto_riscald_fucina -> 1200 | G11: ='voci di costo'!riscaldamento*base_riparto_riscad_sabbiatura -> 1200 | H11: ='voci di costo'!riscaldamento*base_riparto_riscald_commle -> 800 | I11: 8000
B12: energia | C12: ='voci di costo'!energia/'voci di costo'!TOTALE_AMMORTAMENTI*amm_amministrazione -> 450 | D12: ='voci di costo'!energia/'voci di costo'!TOTALE_AMMORTAMENTI*(amm_magazzino_1+amm_magazzino_2) -> 1500 | E12: ='voci di costo'!energia/'voci di costo'!TOTALE_AMMORTAMENTI*amm_forno -> 6000 | F12: ='voci di costo'!energia/'voci di costo'!TOTALE_AMMORTAMENTI*amm_fucina -> 1500 | G12: ='voci di costo'!energia/'voci di costo'!TOTALE_AMMORTAMENTI*amm_sabbiatura -> 1500 | H12: ='voci di costo'!energia/'voci di costo'!TOTALE_AMMORTAMENTI*amm_commerciale -> 450 | I12: 11400
B13: assicurazioni | C13: ='voci di costo'!assicurazione_impianti_e_attrezzature/'voci di costo'!TOTALE_AMMORTAMENTI*amm_amministrazione -> 118.4210526 | D13: ='voci di costo'!assicurazione_impianti_e_attrezzature/'voci di costo'!TOTALE_AMMORTAMENTI*(amm_magazzino_1+amm_magazzino_2) -> 394.7368421 | E13: ='voci di costo'!assicurazione_impianti_e_attrezzature/'voci di costo'!TOTALE_AMMORTAMENTI*amm_forno -> 1578.947368 | F13: ='voci di costo'!assicurazione_impianti_e_attrezzature/'voci di costo'!TOTALE_AMMORTAMENTI*amm_fucina -> 394.7368421 | G13: ='voci di costo'!assicurazione_impianti_e_attrezzature/'voci di costo'!TOTALE_AMMORTAMENTI*amm_sabbiatura -> 394.7368421 | H13: ='voci di costo'!assicurazione_impianti_e_attrezzature/'voci di costo'!TOTALE_AMMORTAMENTI*amm_commerciale -> 118.4210526 | I13: 3000
B14: totali | C14: =SUM(C5:C13) -> 34768.42105 | D14: 32294.73684 | E14: 129978.9474 | F14: 193694.7368 | G14: 73294.73684 | H14: 34368.42105 | I14: 498400
B15: amministrazione | C15: \\\\\\ | D15: =C14/('voci di costo'!TOTALE_COSTI_PER_STIPENDI-'voci di costo'!stipendio_responsabile_amministrazione)*costo_pers_mag -> 1879.374111 | E15: =C14/('voci di costo'!TOTALE_COSTI_PER_STIPENDI-'voci di costo'!stipendio_responsabile_amministrazione)*(costo_pers_forno1+costo_pers_forno_2+costo_pers_forno_3) -> 7442.321479 | F15: =C14/('voci di costo'!TOTALE_COSTI_PER_STIPENDI-'voci di costo'!stipendio_responsabile_amministrazione)*(costo_pers_fucina_1+costo_pers_fucina_2+costo_pers_fucina_3) -> 16970.74822 | G15: =C14/('voci di costo'!TOTALE_COSTI_PER_STIPENDI-'voci di costo'!stipendio_responsabile_amministrazione)*(costo_pers_sabbiatura_1+costo_personale_sabbiatura_2+costo_personale_sabbiatura_3) -> 5656.916074 | H15: =C14/('voci di costo'!TOTALE_COSTI_PER_STIPENDI-'voci di costo'!stipendio_responsabile_amministrazione)*costo_personale_commerciale -> 2819.061166 | I15: 34768.42105
B16: totali | D16: =SUM(D14:D15) -> 34174.11095 | E16: 137421.2688 | F16: 210665.4851 | G16: 78951.65292 | H16: 37187.48222 | I16: 498400
B17: magazzino | D17: \\\\\ | E17: =$D16/4 -> 8543.527738 | F17: 8543.527738 | G17: 8543.527738 | H17: 8543.527738 | I17: 34174.11095
B18: totali | E18: =SUM(E16:E17) -> 145964.7966 | F18: 219209.0128 | G18: 87495.18065 | H18: 45731.00996 | I18: 498400
C21: tot. costo | D21: fatturato | E21: prezzo vasi | F21: prezzo bicchieri | G21: coefficiente | H21: costo vasi | I21: costo bicchieri
B22: centro commerciale | C22: =H18 -> 45731.00996 | D22: 700000 | E22: 120 | F22: 70 | G22: =C22/D22 -> 0.06533001422 | H22: =G22*E22 -> 7.839601707 | I22: =G22*F22 -> 4.573100996
C24: tot. costo | D24: tot. h. lavorate | E24: tempo vasi | F24: tempo bicchieri | G24: coefficiente | H24: costo vasi | I24: costo bicchieri
B25: forno | C25: =E18 -> 145964.7966 | D25: 4000 | E25: 5 | F25: 2 | G25: =C25/D25 -> 36.49119915 | H25: =G25*E25 -> 182.4559957 | I25: =G25*F25 -> 72.98239829
B26: fucina | C26: =F18 -> 219209.0128 | D26: 8000 | E26: 6 | F26: 2 | G26: 27.4011266 | H26: 164.4067596 | I26: 54.8022532
B27: sabbiatura | C27: =G18 -> 87495.18065 | D27: 2000 | E27: 4 | F27: 4 | G27: 43.74759033 | H27: 174.9903613 | I27: 174.9903613
B28: totale | H28: =SUM(H25:H27) -> 521.8531166 | I28: 302.7750128
C30: vasi | D30: bicchieri
B31: materie prime | C31: ='voci di costo'!costo_unitario_materie_prime_vasi -> 5.5 | D31: ='voci di costo'!costo_unitario_materie_prime_bicchieri -> 3
B32: centro forno | C32: =H25 -> 182.4559957 | D32: 72.98239829
B33: centro fucina | C33: =H26 -> 164.4067596 | D33: 54.8022532
B34: centro sabbiatura | C34: =H27 -> 174.9903613 | D34: 174.9903613
B35: centro commerciale | C35: =H22 -> 7.839601707 | D35: 4.573100996
B36: totale | C36: =SUM(C31:C35) -> 535.1927183 | D36: 310.3481138
